Workbook

Sheet MSU
B1: Valtteri Kleemola | E1: 23.1.1995 Ulvila
B2: SUPERPESIS | E2: Runkosarja | I2: Kärkilyönnit (KL), pesänvälit | P2: Runkosarja TOP-30 | U2: Alempi loppusarja | AB2: Ylempi loppusarja TOP-10 | AG2: Play off, voitot, voittoprosentti | AL2: Arvo-ottelut | AO2: Mitalit
B3: Vuosi | C3: Sija | D3: Seura | E3: OTT | F3: KUN | G3: LÖI | H3: TOI | I3: KL | J3: 0 > 1 | K3: 1 > 2 | L3: 2 > 3 | M3: 3 > k | N3: KL-% | P3: LÖI | Q3: TOI | R3: L+T | S3: KL | U3: OTT | V3: KUN | W3: LÖI | X3: TOI | Y3: KL | Z3: KL-% | AB3: LÖI | AC3: TOI | AD3: L+T | AE3: KL | AG3: Puolivälierät | AH3: Välierät | AI3: Pronssi | AJ3: Finaalit | AL3: IL | AM3: LL | AN3: hSM | AO3: K | AP3: H | AQ3: P
B4: 2011 | C4: 5. | D4: UPV | F4: poikien superpesis
B5: 2012 | C5: 3. | D5: UPV | F5: ykköspesis
B6: 2013 | C6: 6. | D6: UPV | F6: ykköspesis
B7: 2014 | C7: 4. | D7: UPV | F7: ykköspesis
B8: 2015 | C8: 12. | D8: KaMa | E8: 30 | F8: 0 | G8: 2 | H8: 3 | I8: 52 | J8: 23 | K8: 21 | L8: 6 | M8: 2 | N8: 35.1 % | O8: 148
B9: 2016 | C9: 11. | D9: KaMa | E9: 27 | F9: 0 | G9: 4 | H9: 6 | I9: 62 | J9: 26 | K9: 25 | L9: 7 | M9: 4 | N9: 44.3 % | O9: 140
B10: 2017 | C10: 13. | D10: KaMa | E10: 28 | F10: 1 | G10: 0 | H10: 15 | I10: 83 | J10: 61 | K10: 9 | L10: 12 | M10: 1 | N10: 52.9 % | O10: 157
B11: 2018 | C11: 12. | D11: AA | E11: 26 | F11: 1 | G11: 10 | H11: 13 | I11: 82 | J11: 25 | K11: 33 | L11: 13 | M11: 11 | N11: 50.3 % | O11: 163.0218688
B12: 2019 | C12: 12. | D12: KeKi | E12: 24 | F12: 1 | G12: 3 | H12: 10 | I12: 63 | J12: 25 | K12: 19 | L12: 15 | M12: 4 | N12: 41.4 % | O12: 152
B13: 2020 | C13: 10. | D13: KeKi | E13: 22 | F13: 3 | G13: 4 | H13: 8 | I13: 49 | J13: 13 | K13: 16 | L13: 13 | M13: 7 | N13: 49.5 % | O13: 99
B14: 2021 | C14: 4. | D14: KeKi 2 | F14: suomensarja
B15: 2021 | C15: 6. | D15: KeKi | E15: 7 | F15: 1 | G15: 3 | H15: 1 | I15: 12 | J15: 1 | K15: 2 | L15: 5 | M15: 4 | N15: 52.2 % | O15: 23
B16: 2020 | C16: 7. | D16: SiKi | F16: ykköspesis
B17: Yhteensä | E17: =SUM(E4:E16) -> 164 | F17: 7 | G17: 26 | H17: 56 | I17: 403 | J17: 174 | K17: 125 | L17: 71 | M17: 33 | N17: =PRODUCT(I17/O17) -> 45.7 % | O17: =SUM(O3:O16) -> 882.0218688 | P17: 0-0-0 | Q17: 0-0-0 | R17: 0-0-0 | S17: 0-0-0 | U17: =SUM(U4:U16) -> 0 | V17: 0 | W17: 0 | X17: 0 | Y17: 0 | Z17: 53.9 % | AB17: 0-0-0 | AC17: 0-0-0 | AD17: 0-0-0 | AE17: 0-0-0 | AG17: 0/0 | AH17: 0/0 | AI17: 0/0 | AJ17: 0/0 | AL17: =SUM(AL4:AL16) -> 0 | AM17: 0 | AN17: 0 | AO17: 0 | AP17: 0 | AQ17: 0
AG18: 0.0 % | AH18: 0.0 % | AI18: 0.0 % | AJ18: 0.0 %
B19: Pesispörssi | D19: =SUM(F17:H17)+((I17-F17-G17)/3)+(E17/3)+(AL17*25)+(AM17*25)+(AN17*10)+(AO17*25)+(AP17*20)+(AQ17*15) -> 267.0
B21: URA SUPERISSA | E21: OTT | F21: KUN | G21: LÖI | H21: TOI | I21: KL | K21: ka/L | L21: ka/T | M21: ka/KL | N21: KL-% | P21: ENSIMMÄISET RUNKOSARJASSA | AG21: ENSIMMÄISET PUDOTUSPELEISSÄ | AL21: YLEISÖ
B22: Runkosarja | E22: =PRODUCT(E17) -> 164 | F22: =PRODUCT(F17) -> 7 | G22: =PRODUCT(G17) -> 26 | H22: =PRODUCT(H17) -> 56 | I22: =PRODUCT(I17) -> 403 | K22: =PRODUCT((F22+G22)/E22) -> 0.20 | L22: =PRODUCT(H22/E22) -> 0.34 | M22: =PRODUCT(I22/E22) -> 2.46 | N22: =PRODUCT(N17) -> 45.7 % | O22: =PRODUCT(O17) -> 882.0218688 | P22: Ottelu | R22: 10.05. 2015 KaMa - KiPa 0-2 (0-5, 1-3) | AA22: 1. ottelu | AC22: 20 v 3 kk 17 pv | AG22: Ottelu
B23: Ylempi loppusarja | P23: Lyöty | R23: 21.05. 2015 KaMa - Kiri 1-2 (4-0, 2-8, 0-1) | AA23: 4. ottelu | AC23: 20 v 3 kk 28 pv | AG23: Lyöty
B24: Alempi loppusarja | E24: 12 | F24: 3 | G24: 10 | H24: 9 | I24: 41 | K24: =PRODUCT((F24+G24)/E24) -> 1.08 | L24: =PRODUCT(H24/E24) -> 0.75 | M24: =PRODUCT(I24/E24) -> 3.42 | N24: =PRODUCT(I24/O24) -> 53.9 % | O24: 76 | P24: Tuotu | R24: 26.05. 2015 KaMa - AA 2-1 (6-5, 2-5, 2-0) | AA24: 6. ottelu | AC24: 20 v 4 kk 3 pv | AG24: Tuotu
B25: KAIKKI | E25: =SUM(E22:E24) -> 176 | F25: =SUM(F22:F24) -> 10 | G25: =SUM(G22:G24) -> 36 | H25: =SUM(H22:H24) -> 65 | I25: =SUM(I22:I24) -> 444 | K25: =PRODUCT((F25+G25)/E25) -> 0.26 | L25: =PRODUCT(H25/E25) -> 0.37 | M25: =PRODUCT(I25/E25) -> 2.52 | N25: =PRODUCT(I25/O25) -> 46.3 % | O25: =SUM(O22:O24) -> 958.0218688 | P25: Kunnari | R25: 21.05. 2017 KiPa - KaMa 1-2 (0-2, 5-1, 0-1) | AA25: 61. ottelu | AC25: 17 v 6 kk 17 pv | AG25: Kunnari
O26: =SUM(O23:O25) -> 1034.021869
B27: Seurat | D27: UPV = Ulvilan Pesä-Veikot (1957), kasvattajaseura
D28: KaMa = Kankaanpään Maila (1958)
D29: AA = Alajärven Ankkurit (1944)
D30: KeKi = Kempeleen Kiri (1915)
D31: SiKi = Simon Kiri (1926)

Sheet MYP, MSS
B1: Valtteri Kleemola | E1: 23.1.1995 Ulvila
B2: YKKÖSPESIS | E2: Runkosarja | L2: Runkosarja TOP-10 | Q2: Jatkosarjat | X2: SUOMENSARJA | AA2: Runkosarja | AH2: Runkosarja TOP-10 | AM2: Jatkosarjat
B3: Vuosi | C3: Sija | D3: Seura | E3: OTT | F3: KUN | G3: LÖI | H3: TOI | I3: KL | J3: KL-% | L3: LÖI | M3: TOI | N3: L+T | O3: KL | Q3: OTT | R3: KUN | S3: LÖI | T3: TOI | U3: KL | V3: KL-% | X3: Vuosi | Y3: Sija | Z3: Seura | AA3: OTT | AB3: KUN | AC3: LÖI | AD3: TOI | AE3: KL | AF3: KL-% | AH3: LÖI | AI3: TOI | AJ3: L+T | AK3: KL | AM3: OTT | AN3: KUN | AO3: LÖI | AP3: TOI | AQ3: KL | AR3: KL-%
B4: 2012 | C4: 3. | D4: UPV | E4: 3 | F4: 0 | G4: 0 | H4: 2 | I4: 3 | J4: 16.7 % | K4: 18 | Q4: 1 | R4: 1 | S4: 2 | T4: 1 | U4: 6 | V4: 66.7 % | W4: 9
B5: 2013 | C5: 6. | D5: UPV | E5: 22 | F5: 0 | G5: 3 | H5: 12 | I5: 52 | J5: 43.0 % | K5: 121
B6: 2014 | C6: 4. | D6: UPV | E6: 21 | F6: 0 | G6: 2 | H6: 9 | I6: 53 | J6: 45.7 % | K6: 116 | Q6: 3 | R6: 0 | S6: 0 | T6: 2 | U6: 7 | V6: 36.8 % | W6: 19
X8: 2021 | Y8: 4. | Z8: KeKi 2 | AA8: 1 | AB8: 0 | AC8: 1 | AD8: 3 | AE8: 4 | AF8: 66.7 % | AG8: 6
B9: 2022 | C9: 7. | D9: SiKi | E9: 19 | F9: 2 | G9: 27 | H9: 14 | I9: 81 | J9: 58.7 % | K9: 138
B10: YHTEENSÄ | E10: =SUM(E4:E9) -> 65 | F10: =SUM(F4:F9) -> 2 | G10: =SUM(G4:G9) -> 32 | H10: =SUM(H4:H9) -> 37 | I10: =SUM(I4:I9) -> 189 | J10: =PRODUCT(I10/K10) -> 48.1 % | K10: =SUM(K4:K9) -> 393 | Q10: =SUM(Q4:Q9) -> 4 | R10: =SUM(R4:R9) -> 1 | S10: =SUM(S4:S9) -> 2 | T10: =SUM(T4:T9) -> 3 | U10: =SUM(U4:U9) -> 13 | V10: =PRODUCT(U10/W10) -> 46.4 % | W10: =SUM(W4:W9) -> 28 | X10: YHTEENSÄ | AA10: =SUM(AA4:AA9) -> 1 | AB10: =SUM(AB4:AB9) -> 0 | AC10: =SUM(AC4:AC9) -> 1 | AD10: =SUM(AD4:AD9) -> 3 | AE10: =SUM(AE4:AE9) -> 4 | AF10: =PRODUCT(AE10/AG10) -> 66.7 % | AG10: =SUM(AG4:AG9) -> 6 | AM10: =SUM(AM4:AM9) -> 0 | AN10: =SUM(AN4:AN9) -> 0 | AO10: =SUM(AO4:AO9) -> 0 | AP10: =SUM(AP4:AP9) -> 0 | AQ10: =SUM(AQ4:AQ9) -> 0 | AR10: 0.0 % | AS10: =SUM(AS4:AS9) -> 0
B12: KAIKKI OTTELUT | E12: OTT | F12: KUN | G12: LÖI | H12: TOI | I12: KL | J12: KL-% | L12: ka/L | M12: ka/T | N12: ka/l+t | O12: ka/kl | R12: Seurat | T12: UPV = Ulvilan Pesä-Veikot (1957), kasvattajaseura
B13: SUPERPESIS | E13: 176 | F13: 10 | G13: 36 | H13: 65 | I13: 444 | J13: 46.3 % | K13: =PRODUCT(I13/J13) -> 958.9632829 | L13: =PRODUCT((F13+G13)/E13) -> 0.26 | M13: =PRODUCT(H13/E13) -> 0.37 | N13: =PRODUCT((F13+G13+H13)/E13) -> 0.63 | O13: =PRODUCT(I13/E13) -> 2.52 | T13: KaMa = Kankaanpään Maila (1958)
B14: YKKÖSPESIS | E14: =PRODUCT(E10+Q10) -> 69 | F14: =PRODUCT(F10+R10) -> 3 | G14: =PRODUCT(G10+S10) -> 34 | H14: =PRODUCT(H10+T10) -> 40 | I14: =PRODUCT(I10+U10) -> 202 | J14: =PRODUCT(I14/K14) -> 48.0 % | K14: =PRODUCT(K10+W10) -> 421 | L14: =PRODUCT((F14+G14)/E14) -> 0.54 | M14: =PRODUCT(H14/E14) -> 0.58 | N14: =PRODUCT((F14+G14+H14)/E14) -> 1.12 | O14: =PRODUCT(I14/E14) -> 2.93 | T14: AA = Alajärven Ankkurit (1944)
B15: SUOMENSARJA | E15: =PRODUCT(AA10+AM10) -> 1 | F15: =PRODUCT(AB10+AN10) -> 0 | G15: =PRODUCT(AC10+AO10) -> 1 | H15: =PRODUCT(AD10+AP10) -> 3 | I15: =PRODUCT(AE10+AQ10) -> 4 | J15: =PRODUCT(I15/K15) -> 66.7 % | K15: =PRODUCT(AG10) -> 6 | L15: =PRODUCT((F15+G15)/E15) -> 1.00 | M15: =PRODUCT(H15/E15) -> 3.00 | N15: =PRODUCT((F15+G15+H15)/E15) -> 4.00 | O15: =PRODUCT(I15/E15) -> 4.00 | T15: KeKi = Kempeleen Kiri (1915)
B16: YHTEENSÄ | E16: =SUM(E13:E15) -> 246 | F16: =SUM(F13:F15) -> 13 | G16: 71 | H16: 108 | I16: 650 | J16: =PRODUCT(I16/K16) -> 46.9 % | K16: =SUM(K13:K15) -> 1385.963283 | L16: =PRODUCT((F16+G16)/E16) -> 0.34 | M16: =PRODUCT(H16/E16) -> 0.44 | N16: =PRODUCT((F16+G16+H16)/E16) -> 0.78 | O16: =PRODUCT(I16/E16) -> 2.64 | T16: SiKi = Simon Kiri (1926)

Sheet Arvo-ottelut
B1: ITÄ - LÄNSI - KORTTI
B2: Valtteri Kleemola | C2: 23.1.1995 Ulvila
B3: B-POJAT | C3: Itä - Länsi, tulos | D3: Joukkue | E3: Seura | G3: V | H3: T | I3: H | J3: Up. | K3: Lj. | L3: Palk. | M3: O | N3: K | O3: L | P3: T | Q3: KL | R3: 1 | S3: 2 | T3: 3 | U3: k | V3: KL-% | W3: Pelinjohtaja | X3: Yleisöä
B4: 14.07. 2013 Hyvinkää | C4: 0-2 (3-4, 2-6) | D4: Länsi | E4: VäVi | G4: 1 | J4: 2k | K4: 7 | M4: 1 | Q4: 4/5 | R4: 1/2 | T4: 3/3 | V4: 80.0 % | W4: Pasi Vanhatalo | X4: 1287
B6: A-POJAT | C6: Itä - Länsi, tulos | D6: Joukkue | E6: Seura | G6: V | H6: T | I6: H | J6: Up. | K6: Lj. | L6: Palk. | M6: O | N6: K | O6: L | P6: T | Q6: KL | R6: 1 | S6: 2 | T6: 3 | U6: k | V6: KL-% | W6: Pelinjohtaja | X6: Yleisöä
B7: 26.06. 2015 Hyvinkää | C7: 0-1 (2-5, 2-2) | D7: Länsi | E7: KaMa | G7: 1 | J7: 2v | K7: 8 | M7: 1 | Q7: 3/7 | R7: 2/5 | T7: 1/2 | V7: 42.9 % | W7: Jussi Parvi | X7: 842
B8: 01.07. 2016 Kouvola | C8: 1-2 (2-1, 6-10, 1-2) | D8: Länsi | E8: KaMa | G8: 1 | J8: 2p | K8: 4 | L8: I p | M8: 1 | O8: 1 | P8: 1 | Q8: 6/9 | S8: 3/4 | T8: 2/3 | U8: 1/2 | V8: 66.7 % | W8: Jussi Parvi | X8: 1236
B9: Yhteensä | G9: 2 | M9: 2 | O9: 1 | P9: 1 | Q9: 9/16 | R9: 2/5 | S9: 3/4 | T9: 3/5 | U9: 1/2 | V9: 56.3 %

Sheet Kärkilyönnit
B1: KÄRKILYÖNNIT RUNKOSARJASSA | V1: VUOSITTAISET SIJOITUKSET TOP - 30
G2: 0 > 1 | J2: 1 > 2 | M2: 2 > 3 | P2: 3 > k | S2: Yhteensä
B3: Vuosi | C3: Sija | D3: Seura | E3: OTT | F3: KL | G3: YHT | H3: % | I3: KL | J3: YHT | K3: % | L3: KL | M3: YHT | N3: % | O3: KL | P3: YHT | Q3: % | R3: KL | S3: YHT | T3: % | V3: Vuosi | W3: Sija | X3: Seura | Y3: 0 > 1 | Z3: 1 > 2 | AA3: 2 > 3 | AB3: 3 > k | AC3: KL
B4: 2015 | C4: 12. | D4: KaMa | E4: 30 | F4: 23 | G4: 71 | H4: 32.4 % | I4: 21 | J4: 53 | K4: 39.6 % | L4: 6 | M4: 17 | N4: 35.3 % | O4: 2 | P4: 7 | Q4: 28.6 % | R4: 52 | S4: 148 | T4: 35.1 % | V4: 2015 | W4: 12. | X4: KaMa
B5: 2016 | C5: 11. | D5: KaMa | E5: 27 | F5: 26 | G5: 55 | H5: 47.3 % | I5: 25 | J5: 44 | K5: 56.8 % | L5: 7 | M5: 21 | N5: 33.3 % | O5: 4 | P5: 20 | Q5: 20.0 % | R5: 62 | S5: 140 | T5: 44.3 % | V5: 2016 | W5: 11. | X5: KaMa
B6: 2017 | C6: 13. | D6: KaMa | E6: 28 | F6: 61 | G6: 97 | H6: 62.9 % | I6: 9 | J6: 23 | K6: 39.1 % | L6: 12 | M6: 29 | N6: 41.4 % | O6: 1 | P6: 8 | Q6: 12.5 % | R6: 83 | S6: 157 | T6: 52.9 % | V6: 2017 | W6: 13. | X6: KaMa | Y6: 23.
B7: 2018 | C7: 12. | D7: AA | E7: 26 | F7: 25 | G7: 47 | H7: 53.2 % | I7: 33 | J7: 66 | K7: 50.0 % | L7: 13 | M7: 25 | N7: 52.0 % | O7: 11 | P7: 25 | Q7: 44.0 % | R7: 82 | S7: 163 | T7: 50.3 % | V7: 2018 | W7: 12. | X7: AA
B8: 2019 | C8: 12. | D8: KeKi | E8: 24 | F8: 25 | G8: 63 | H8: 39.7 % | I8: 19 | J8: 47 | K8: 40.4 % | L8: 15 | M8: 31 | N8: 48.4 % | O8: 4 | P8: 11 | Q8: 36.4 % | R8: 63 | S8: 152 | T8: 41.4 % | V8: 2019 | W8: 12. | X8: KeKi
B9: 2020 | C9: 10. | D9: KeKi | E9: 22 | F9: 13 | G9: 23 | H9: 56.5 % | I9: 16 | J9: 30 | K9: 53.3 % | L9: 13 | M9: 31 | N9: 41.9 % | O9: 7 | P9: 15 | Q9: 46.7 % | R9: 49 | S9: 99 | T9: 49.5 % | V9: 2020 | W9: 10. | X9: KeKi
B10: 2021 | C10: 6. | D10: KeKi | E10: 7 | F10: 1 | G10: 4 | H10: 25.0 % | I10: 2 | J10: 6 | K10: 33.3 % | L10: 5 | M10: 8 | N10: 62.5 % | O10: 4 | P10: 5 | Q10: 80.0 % | R10: 12 | S10: 23 | T10: 52.2 % | V10: 2021 | W10: 6. | X10: KeKi
B11: Yhteensä | E11: =SUM(E4:E10) -> 164 | F11: =SUM(F4:F10) -> 174 | G11: =SUM(G4:G10) -> 360 | H11: =PRODUCT(F11/G11) -> 48.3 % | I11: =SUM(I4:I10) -> 125 | J11: =SUM(J4:J10) -> 269 | K11: =PRODUCT(I11/J11) -> 46.5 % | L11: =SUM(L4:L10) -> 71 | M11: =SUM(M4:M10) -> 162 | N11: =PRODUCT(L11/M11) -> 43.8 % | O11: =SUM(O4:O10) -> 33 | P11: =SUM(P4:P10) -> 91 | Q11: =PRODUCT(O11/P11) -> 36.3 % | R11: =SUM(R4:R10) -> 403 | S11: =SUM(S4:S10) -> 882 | T11: =PRODUCT(R11/S11) -> 45.7 %
